bitfinex/quotes_SOLUSD_20230120
["timestamp","ask_amount","ask_price","bid_price","bid_amount"]
[1674252943320,21.15,25.27,25.213,117.2707]
[1674252943523,39.11,25.269,25.214,29.75]
[1674252943741,20.0,25.268,25.214,29.75]
[1674252944065,17.0,25.267,25.22,20.96]
[1674252944279,17.0,25.267,25.221,29.74]
[1674252944468,17.0,25.268,25.221,29.74]
[1674252944678,66.58941065,25.267,25.221,29.74]
[1674252944910,17.0,25.266,25.216,29.75]
[1674252945103,23.67353,25.265,25.214,29.75]
[1674252945315,23.67353,25.265,25.181,31.06694425]
[1674252945316,2.51353,25.264,25.2,29.77]
[1674252945531,30.65,25.263,25.2,29.77]
[1674252945745,2.51353,25.262,25.2,29.77]
[1674252946068,29.66,25.29,25.201,20.54793191]
[1674252946264,2.51353,25.289,25.202,31.80482]
[1674252946463,29.66,25.288,25.203,2.53472]
[1674252946675,2.51353,25.287,25.204,29.76]
[1674252946885,29.67,25.286,25.205,2.53452]
[1674252947109,29.67,25.286,25.206,29.76]
[1674252947110,22.51353,25.285,25.206,29.76]
[1674252947308,32.18353,25.284,25.207,22.53432]
[1674252947523,32.18353,25.284,25.208,32.29422]
[1674252947733,29.64,25.311,25.21,2.53402]
[1674252947950,23.75576951,25.292,25.211,29.76]
[1674252948154,32.17353,25.291,25.212,22.53382]
[1674252948358,2.51353,25.29,25.213,32.28372]
[1674252948568,29.66,25.289,25.214,22.53361]
[1674252948798,2.51353,25.288,25.215,150.56231]
[1674252949110,29.67,25.287,25.215,137.5288]
[1674252949427,2.51353,25.286,25.216,205.98297548]
[1674252949619,29.67,25.285,25.217,32.28331]
[1674252949826,2.51353,25.284,25.218,2.53321]
[1674252950039,29.67,25.283,25.219,29.75]
[1674252950245,2.51353,25.282,25.22,2.53301]
[1674252950454,29.67,25.281,25.221,29.74]
[1674252950689,20.0,25.28,25.222,2.53281]
[1674252950888,20.0,25.28,25.223,29.74]
[1674252951110,20.0,25.28,25.224,2.53261]
[1674252951312,63.10256856,25.279,25.225,29.74]
[1674252951630,29.68,25.279,25.226,2.53241]
[1674252951834,30.90903856,25.279,25.227,29.74]
[1674252952040,29.63,25.318,25.228,22.53221]
[1674252952247,2.51353,25.317,25.229,32.26211]
[1674252952469,125.6,25.315,25.23,22.53201]
[1674252952683,125.6,25.313,25.231,21.76191]
[1674252952894,125.6,25.311,25.232,22.53181]
[1674252953208,128.11353,25.309,25.233,29.73]
[1674252953410,128.11353,25.307,25.233,29.73]
[1674252953628,128.11353,25.305,25.224,18.01301191]
[1674252953823,128.11353,25.303,25.225,29.74]
[1674252954034,29.65,25.304,25.216,29.75]
[1674252954035,128.11353,25.301,25.216,29.75]
[1674252954251,67.61,25.302,25.216,29.75]
[1674252954252,128.11353,25.299,25.216,29.75]
[1674252954457,128.11353,25.297,25.216,29.75]
[1674252954665,128.11353,25.295,25.217,18.01301191]
[1674252954883,128.11353,25.293,25.218,29.75]
[1674252955098,29.66,25.294,25.2,118.4314]
[1674252955099,125.6,25.291,25.217,18.01301191]
[1674252955299,52.17353,25.29,25.219,67.22641336]
[1674252955501,47.96630161,25.29,25.22,32.27301]
[1674252955839,47.96630161,25.29,25.221,2.53291]
[1674252955840,29.66,25.29,25.221,2.53291]
[1674252956051,29.65,25.298,25.222,30.7]
[1674252956248,120.0,25.323,25.224,2.53261]
[1674252956249,29.63,25.321,25.224,2.53261]
[1674252956458,45.95337851,25.317,25.225,30.7]
[1674252956783,29.63,25.316,25.227,2.53231]
[1674252956988,29.63,25.319,25.228,30.7]
[1674252957195,29.63,25.319,25.23,2.53201]
[1674252957400,29.59,25.349,25.232,125.6]
[1674252957608,2.51353,25.348,25.242,2.5308]
[1674252957818,29.6,25.347,25.27,17.0]
[1674252958042,2.51353,25.346,25.271,53.1679]
[1674252958248,125.6,25.344,25.272,2.5278]
[1674252958460,115.1,25.342,25.273,30.64]
[1674252958673,32.11353,25.341,25.274,20.0]
[1674252958892,117.61353,25.34,25.274,20.0]
[1674252959105,114.86192,25.338,25.243,254.92195212]
[1674252959286,114.86192,25.336,25.244,2.5306]
[1674252959494,117.13737,25.334,25.245,29.72]
[1674252959814,117.13737,25.332,25.246,2.5304]
[1674252960034,114.38576,25.33,25.247,29.71]
[1674252960239,114.14768,25.328,25.248,2.5302]
[1674252960450,114.14768,25.326,25.249,29.71]
[1674252960660,3.47353,25.325,25.25,2.53]
[1674252960881,2.27545,25.323,25.25,2.53]
[1674252961082,114.14768,25.321,25.25,2.53]
[1674252961287,116.66121,25.319,25.25,2.53]
[1674252961498,29.63,25.32,25.243,118.6988]
[1674252961499,116.66121,25.317,25.243,118.6988]
[1674252961707,5.33538437,25.314,25.243,118.6988]
[1674252961930,29.63,25.316,25.243,118.6988]
[1674252961931,116.42313,25.312,25.243,118.6988]
[1674252962138,46.64,25.313,25.244,2.5306]
[1674252962139,113.9096,25.31,25.244,2.5306]
[1674252962335,69.15353,25.311,25.244,2.5306]
[1674252962336,113.9096,25.308,25.244,2.5306]
[1674252962547,113.9096,25.306,25.245,29.72]
[1674252962859,113.9096,25.304,25.245,50.26351191]
[1674252963070,113.9096,25.302,25.246,20.54341191]
[1674252963278,113.9096,25.3,25.247,2.5303]
[1674252963503,113.9096,25.298,25.247,2.5303]
[1674252963825,69.16353,25.299,25.247,2.5303]
[1674252963826,113.9096,25.296,25.247,2.5303]
[1674252964036,113.9096,25.294,25.248,18.01301191]
[1674252964238,113.9096,25.292,25.247,2.5303]
[1674252964455,29.66,25.293,25.247,2.5303]
[1674252964456,113.9096,25.29,25.247,2.5303]
[1674252964665,29.66,25.289,25.247,2.5303]
[1674252964982,29.65,25.299,25.248,47.72301191]
[1674252965189,29.61,25.332,25.25,2.53]
[1674252965398,2.51353,25.331,25.251,29.71]
[1674252965599,125.6,25.329,25.252,22.5298]
[1674252965816,125.6,25.327,25.253,32.2397]
[1674252966025,125.6,25.325,25.254,23.4896]
[1674252966342,125.6,25.323,25.255,2.5295]
[1674252966543,125.6,25.321,25.256,0.96]
[1674252966757,125.6,25.319,25.256,0.96]
[1674252966963,125.6,25.317,25.256,0.96]
[1674252967173,49.14353,25.318,25.256,0.96]
[1674252967174,125.6,25.315,25.256,0.96]
[1674252967387,125.6,25.315,25.138,267.0938807]
[1674252967388,125.6,25.313,25.226,29.74]
[1674252967601,125.6,25.311,25.228,2.53221]
[1674252967817,125.6,25.309,25.229,29.73]
[1674252968024,125.6,25.307,25.23,2.53201]
[1674252968241,125.6,25.305,25.231,29.73]
[1674252968433,125.6,25.303,25.232,2.53181]
[1674252968646,125.6,25.301,25.233,29.73]
[1674252968872,125.6,25.299,25.234,2.53161]
[1674252969081,125.6,25.297,25.235,29.73]
[1674252969294,125.6,25.295,25.234,2.53161]
[1674252969608,125.6,25.293,25.199,231.478202]
[1674252969817,50.13353,25.294,25.214,2.53361]
[1674252969818,125.6,25.291,25.214,2.53361]
[1674252970029,125.6,25.289,25.215,29.75]
[1674252970234,125.6,25.287,25.216,2.53341]
[1674252970443,125.6,25.285,25.217,29.75]
[1674252970657,125.6,25.283,25.218,2.53321]
[1674252970853,125.6,25.281,25.218,2.53321]
[1674252971064,125.6,25.279,25.219,29.75]
[1674252971378,176.24,25.278,25.22,2.53301]
[1674252971585,17.0,25.277,25.221,29.74]
[1674252971817,125.6,25.275,25.222,2.53281]
[1674252972130,29.68,25.274,25.222,2.53281]
[1674252972323,29.68,25.275,25.223,29.74]
[1674252972536,29.68,25.275,25.224,22.53261]
[1674252972537,36.99686302,25.274,25.224,22.53261]
[1674252972739,36.99686302,25.274,25.225,32.27251]
[1674252972962,29.68,25.273,25.226,22.53241]
[1674252973171,36.99686302,25.274,25.227,2.53231]
[1674252973495,29.68,25.273,25.227,32.27231]
[1674252973699,20.0,25.272,25.228,20.96]
[1674252973915,131.43459637,25.272,25.228,20.0]
[1674252974103,29.68,25.271,25.228,20.0]
[1674252974315,50.68196384,25.282,25.229,2.53211]
[1674252974525,36.99686302,25.272,25.229,2.53211]
[1674252974745,29.68,25.271,25.204,20.0]
[1674252974951,29.68,25.271,25.206,2.53442]
[1674252975165,23.75576951,25.27,25.207,29.76]
[1674252975386,125.6,25.269,25.208,22.53422]
[1674252975700,125.6,25.269,25.206,20.0]
[1674252975701,172.29,25.268,25.209,32.29412]
[1674252975921,230.27882686,25.268,25.21,2.53402]
[1674252976104,214.23882686,25.267,25.211,29.76]
[1674252976320,17.0,25.266,25.212,2.53382]
[1674252976530,158.76353,25.265,25.212,2.53382]
[1674252976735,17.0,25.264,25.213,29.75]
[1674252976953,126.56,25.263,25.213,29.75]
[1674252977161,17.0,25.262,25.213,29.75]
[1674252977377,0.96,25.261,25.213,29.75]
[1674252977592,200.51636628,25.261,25.213,29.75]
[1674252977810,250.44759679,25.26,25.214,20.0]
[1674252978012,125.6,25.258,25.214,20.0]
[1674252978208,163.56,25.257,25.202,20.0]
[1674252978439,163.56,25.257,25.203,29.76]
[1674252978440,125.6,25.255,25.203,29.76]
[1674252978634,125.6,25.253,25.2,29.77]
[1674252978857,125.6,25.251,25.2,29.77]
[1674252979061,29.71,25.25,25.201,2.53492]
[1674252979260,17.0,25.257,25.202,29.77]
[1674252979468,29.68,25.278,25.203,2.53472]
[1674252979799,52.96971211,25.277,25.204,29.76]
[1674252980006,125.6,25.275,25.205,2.53452]
[1674252980218,125.6,25.273,25.206,29.76]
[1674252980534,29.68,25.272,25.207,19.99432]
[1674252980725,67.2016209,25.272,25.208,32.29422]
[1674252980935,125.6,25.27,25.209,2.53412]
[1674252981141,125.6,25.268,25.209,2.53412]
[1674252981362,0.46588,25.2,25.199,105.878202]
[1674252981587,32.20353,25.267,25.221,0.26882261]
[1674252981588,125.6,25.264,25.221,0.26882261]
[1674252981772,125.6,25.262,25.221,0.26882261]
[1674252981986,125.6,25.26,25.221,0.26882261]
[1674252982224,125.6,25.258,25.221,0.26882261]
[1674252982417,125.6,25.256,25.221,0.26882261]
[1674252982627,125.6,25.254,25.221,0.26882261]
[1674252982856,125.6,25.252,25.221,0.26882261]
[1674252983175,70.18353,25.253,25.221,0.26882261]
[1674252983176,125.6,25.25,25.221,0.26882261]
[1674252983385,125.6,25.248,25.221,0.26882261]
[1674252983701,70.18353,25.247,25.221,0.26882261]
[1674252983883,2.51353,25.246,25.221,0.26882261]
[1674252984099,26.26929951,25.246,25.221,0.26882261]
[1674252984324,37.0,25.245,25.221,0.26882261]
[1674252984536,20.0,25.245,25.221,0.26882261]
[1674252984744,2.51353,25.246,25.221,0.26882261]
[1674252984958,29.7,25.256,25.221,0.26882261]
[1674252985168,26.26929951,25.255,25.221,0.26882261]
[1674252985486,201.20427423,25.279,25.221,0.26882261]
[1674252985487,29.68,25.279,25.221,0.26882261]
[1674252985693,2.51353,25.277,25.221,0.26882261]
[1674252985893,125.6,25.275,25.221,0.26882261]
[1674252986103,29.68,25.276,25.221,0.26882261]
[1674252986104,128.11353,25.273,25.221,0.26882261]
[1674252986303,128.11353,25.271,25.221,0.26882261]
[1674252986515,125.6,25.269,25.221,0.26882261]
[1674252986726,125.6,25.267,25.221,0.26882261]
[1674252986952,32.20353,25.268,25.221,0.26882261]
[1674252986953,125.6,25.265,25.221,0.26882261]
[1674252987156,125.6,25.263,25.221,0.26882261]
[1674252987374,125.6,25.261,25.221,0.26882261]
[1674252987565,125.6,25.259,25.221,0.26882261]
[1674252987776,125.6,25.257,25.221,0.26882261]
[1674252987988,32.21353,25.258,25.221,0.26882261]
[1674252987989,125.6,25.255,25.221,0.26882261]
[1674252988197,125.6,25.253,25.221,0.26882261]
[1674252988432,125.6,25.251,25.221,0.26882261]
[1674252988739,125.6,25.249,25.221,0.26882261]
[1674252988952,125.6,25.247,25.221,0.26882261]
[1674252989162,69.22353,25.248,25.221,0.26882261]
[1674252989163,125.6,25.245,25.221,0.26882261]
[1674252989357,49.71,25.246,25.221,0.26882261]
[1674252989358,125.6,25.243,25.221,0.26882261]
[1674252989716,125.6,25.241,25.221,0.26882261]
[1674252989879,69.23353,25.242,25.219,149.09016361]
[1674252989880,0.26882261,25.221,25.219,149.09016361]
[1674252990090,157.85353,25.22,25.219,57.29595271]
[1674252990295,15.56337594,25.207,25.2,22.2897527]
[1674252990508,19.20789965,25.198,25.181,21.756667]
[1674252990737,53.23353,25.206,25.181,21.756667]
[1674252990738,125.6,25.196,25.181,21.756667]
[1674252990932,52.28353,25.197,25.151,234.92429631]
[1674252990933,125.6,25.18,25.151,234.92429631]
[1674252991141,21.756667,25.181,25.162,21.756667]
[1674252991142,29.79,25.179,25.162,21.756667]
[1674252991460,26.26929951,25.178,25.162,21.756667]
[1674252991660,22.51353,25.177,25.162,21.756667]
[1674252991878,20.0,25.177,25.162,21.756667]
[1674252992085,82.84876517,25.188,25.162,21.756667]
[1674252992312,29.75,25.214,25.162,19.256667]
[1674252992525,92.55930436,25.215,25.162,19.256667]
[1674252992526,29.78,25.187,25.162,19.256667]
[1674252992733,2.51353,25.187,25.162,19.256667]
[1674252993048,23.75576951,25.186,25.162,19.256667]
[1674252993265,157.90353,25.185,25.162,19.256667]
[1674252993490,2.51353,25.184,25.162,19.256667]
[1674252993688,155.39,25.183,25.162,19.256667]
[1674252993897,125.6,25.181,25.162,8.256667]
[1674252994113,11.0,25.161,25.106,29.88]
[1674252994320,125.6,25.159,25.106,29.88]
[1674252994648,125.6,25.159,25.093,118.4934]
[1674252994649,125.6,25.157,25.094,29.89]
[1674252994843,125.6,25.135,25.069,29.92]
[1674252995046,7.672011,25.155,25.068,1.67514825]
[1674252995047,125.6,25.133,25.124,11.756667]
[1674252995261,10.0,25.12,25.069,29.92]
[1674252995605,10.0,25.12,25.048,88.54334466]
[1674252995606,125.6,25.118,25.048,21.756667]
[1674252995781,23.47353,25.119,25.048,21.756667]
[1674252995782,21.756667,25.098,25.048,21.756667]
[1674252995991,157.98353,25.117,25.048,21.756667]
[1674252995992,33.36353,25.097,25.048,21.756667]
[1674252996207,2.51353,25.096,25.049,29.95]
[1674252996417,66.82619781,25.116,25.049,29.95]
[1674252996418,29.87,25.116,25.076,18.00483594]
[1674252996634,0.96,25.115,25.068,144.0094]
[1674252996837,91.39053442,25.115,25.076,18.00483594]
[1674252997046,91.39053442,25.115,25.048,21.756667]
[1674252997047,329.61875324,25.114,25.048,21.756667]
[1674252997379,21.756667,25.085,25.048,21.756667]
[1674252997564,29.87,25.112,25.049,144.0394]
[1674252997778,2.51353,25.111,25.061,18.00483594]
[1674252997985,29.87,25.11,25.062,29.93]
[1674252998311,22.51353,25.109,25.049,144.0394]
[1674252998509,29.64155,25.108,25.063,18.00483594]
[1674252998724,20.0,25.107,25.063,18.00483594]
[1674252998948,20.0,25.107,25.068,18.00483594]
[1674252999164,20.0,25.107,25.064,18.00483594]
[1674252999476,23.75576951,25.106,25.05,29.95]
[1674252999789,52.39353,25.105,25.05,29.95]
[1674253000107,3.47353,25.104,25.058,18.00483594]
[1674253000301,32.39353,25.103,25.05,29.95]
[1674253000501,20.47353,25.102,25.058,18.00483594]
[1674253000716,20.47353,25.102,25.05,29.95]
[1674253000717,29.89,25.101,25.049,114.0894]
[1674253000969,3.47353,25.1,25.049,114.0894]
[1674253001139,32.40353,25.099,25.049,114.0894]
[1674253001353,2.51353,25.098,25.048,21.756667]
[1674253001565,29.89,25.097,25.048,21.756667]
[1674253001778,11.30637338,25.096,25.048,21.756667]
[1674253001979,125.6,25.094,25.048,21.756667]
[1674253002206,125.6,25.092,25.048,21.756667]
[1674253002406,125.6,25.09,25.048,21.756667]
[1674253002625,70.37353,25.089,25.048,21.756667]
[1674253002819,2.51353,25.088,25.048,21.756667]
[1674253003036,125.6,25.086,25.048,21.756667]
[1674253003245,30.86,25.087,25.048,21.756667]
[1674253003246,70.37353,25.085,25.048,21.756667]
[1674253003450,2.51353,25.084,25.048,21.756667]
[1674253003783,87.76204161,25.083,25.048,21.756667]
[1674253003993,125.6,25.081,25.048,21.756667]
[1674253004306,125.6,25.081,24.984,77.1561]
[1674253004307,125.6,25.059,24.997,30.01]
[1674253004498,125.6,25.057,24.991,144.9365]
[1674253004735,125.6,25.055,24.991,144.9365]
[1674253004919,49.45353,25.054,24.991,144.9365]
[1674253005146,129.07353,25.053,25.029,11.756667]
[1674253005358,49.45353,25.052,25.029,11.756667]
[1674253005571,3.47353,25.051,25.029,11.756667]
[1674253005765,32.46353,25.05,25.029,11.756667]
[1674253005973,146.07353,25.049,25.029,11.756667]
[1674253006205,52.46353,25.048,25.029,11.756667]
[1674253006404,3.47353,25.047,25.029,11.756667]
[1674253006601,32.46353,25.046,25.029,11.756667]
[1674253006810,23.47353,25.045,25.029,11.756667]
[1674253007039,158.06353,25.044,25.029,11.756667]
[1674253007236,23.47353,25.043,25.029,11.756667]
[1674253007449,32.47353,25.042,25.029,11.756667]
[1674253007650,32.47353,25.042,24.991,114.9165]
[1674253007651,23.47353,25.041,24.991,114.9165]
[1674253007861,32.47353,25.04,24.991,114.9165]
[1674253008075,129.07353,25.039,24.973,30.04]
[1674253008283,125.6,25.037,25.01,11.35750735]
[1674253008602,5.31124045,25.034,25.01,11.35750735]
[1674253008934,125.6,25.032,25.01,11.35750735]
[1674253009145,68.04212071,25.033,25.01,11.35750735]
[1674253009146,32.48353,25.031,25.01,11.35750735]
[1674253009347,2.51353,25.03,25.01,11.35750735]
[1674253009968,29.92,25.072,25.01,11.35750735]
[1674253010178,120.0,25.034,25.01,11.35750735]
[1674253010387,60.0,25.066,25.011,63.24193288]
[1674253010600,29.9,25.09,25.012,20.51408]
[1674253010822,29.9,25.091,25.014,2.05387]
[1674253011136,20.256667,25.073,25.015,30.95]
[1674253011348,20.256667,25.073,25.016,39.55367]
[1674253011555,20.256667,25.073,25.017,33.00357]
[1674253011877,20.256667,25.073,25.018,39.55346]
[1674253012089,20.256667,25.073,25.019,32.53336]
[1674253012285,20.256667,25.073,25.02,39.55326]
[1674253012619,20.256667,25.073,25.021,32.53316]
[1674253012930,20.256667,25.073,25.022,75.13905738]
[1674253013139,20.256667,25.073,25.024,2.55285]
[1674253013341,20.256667,25.073,25.025,29.98]
[1674253013551,20.256667,25.073,25.026,40.51265]
[1674253013754,20.256667,25.073,25.028,2.55244]
[1674253013973,20.256667,25.073,25.029,30.93]
[1674253014181,27.65582665,25.073,25.031,2.55214]
[1674253014390,27.65582665,25.073,25.038,120.0]
[1674253014726,27.65582665,25.073,25.039,155.35600882]
[1674253014917,29.87,25.11,25.039,155.35600882]
[1674253014918,29.87,25.11,25.04,2.55122]
[1674253015129,29.87,25.11,25.073,27.65582665]
[1674253015333,29.87,25.11,25.041,251.21602476]
[1674253015548,29.87,25.11,25.074,38.68909834]
[1674253015754,29.87,25.11,25.075,0.96]
[1674253015983,29.87,25.11,25.075,57.94698032]
[1674253016181,29.87,25.11,25.076,95.67607866]
[1674253016386,29.87,25.11,25.076,38.68909834]
[1674253016601,29.87,25.11,25.044,29.95]
[1674253016923,29.87,25.11,25.062,36.83805962]
[1674253017131,29.87,25.11,25.062,39.38703962]
[1674253017328,29.85,25.128,25.063,106.79999365]
[1674253017550,29.85,25.129,25.064,2.54878]
[1674253017872,29.83,25.148,25.065,29.93]
[1674253018092,21.516767,25.111,25.066,2.54857]
[1674253018271,21.276867,25.111,25.067,29.93]
[1674253018597,21.036967,25.111,25.068,22.54837]
[1674253018794,21.036967,25.111,25.069,32.46827]
[1674253019005,21.036967,25.111,25.07,22.54817]
[1674253019215,21.036967,25.111,25.048,21.756667]
[1674253019216,21.036967,25.111,25.071,32.46807]
[1674253019416,21.036967,25.111,25.048,21.756667]
[1674253019417,41.40641411,25.11,25.072,20.0]
[1674253019631,41.40641411,25.11,25.049,29.95]
[1674253020289,21.036967,25.111,25.049,29.95]
[1674253020504,39.29694745,25.11,25.05,61.51946557]
[1674253020710,21.036967,25.111,25.051,32.5001]
[1674253020931,21.036967,25.111,25.052,2.55]
[1674253021243,21.036967,25.111,25.053,29.94]
[1674253021459,21.036967,25.111,25.055,2.54969]
[1674253021667,21.036967,25.111,25.056,29.94]
[1674253021986,21.036967,25.111,25.057,22.54949]
[1674253022193,21.036967,25.111,25.059,2.54929]
[1674253022408,21.036967,25.111,25.06,30.89]
[1674253022602,61.89391445,25.111,25.061,22.54908]
[1674253022810,21.036967,25.111,25.062,33.43898]
[1674253023019,21.036967,25.111,25.064,2.54878]
[1674253023343,21.036967,25.111,25.065,29.93]
[1674253023567,21.036967,25.111,25.066,22.54857]
[1674253023760,40.85694745,25.11,25.067,32.47847]
[1674253023977,40.85694745,25.11,25.049,29.95]
[1674253024184,40.85694745,25.11,25.05,2.5502]
[1674253024381,40.85694745,25.11,25.051,29.95]
[1674253024595,40.85694745,25.11,25.052,2.55]
[1674253024912,37.0,25.109,25.053,29.94]
[1674253025117,31.036967,25.111,25.054,2.5498]
[1674253025332,20.0,25.11,25.055,29.94]
[1674253025663,20.0,25.11,25.056,2.54959]
[1674253025876,20.0,25.11,25.057,29.94]
[1674253026186,20.0,25.11,25.058,2.54939]
[1674253026505,20.0,25.11,25.059,29.94]
[1674253026907,20.0,25.11,25.06,2.54918]
[1674253027114,20.0,25.11,25.061,29.93]
[1674253027328,31.036967,25.111,25.062,22.54898]
[1674253027545,31.036967,25.111,25.063,32.47888]
[1674253027753,31.036967,25.111,25.064,22.54878]
[1674253027963,31.036967,25.111,25.065,32.47868]
[1674253028172,31.036967,25.111,25.066,22.54857]
[1674253028397,31.036967,25.111,25.067,50.43847]
[1674253028607,31.036967,25.111,25.068,2.54837]
[1674253028812,29.536967,25.111,25.069,29.92]
[1674253029013,29.536967,25.111,25.07,39.54817]
[1674253029230,29.536967,25.111,25.071,33.42807]
[1674253029438,29.536967,25.111,25.072,39.54796]
[1674253029645,29.536967,25.111,25.073,33.42786]
[1674253029859,29.536967,25.111,25.074,39.54776]
[1674253030074,29.536967,25.111,25.075,33.42766]
[1674253030280,29.536967,25.111,25.076,39.54756]
[1674253030496,29.536967,25.111,25.077,33.41746]
[1674253030715,10.102567,25.111,25.078,39.54735]
[1674253031029,29.83,25.148,25.079,33.41725]
[1674253031347,29.83,25.148,25.081,2.54705]
[1674253031542,29.83,25.148,25.082,30.87]
[1674253031745,29.83,25.148,25.084,2.54675]
[1674253032081,21.756667,25.169,25.084,2.54675]
[1674253032082,29.81,25.168,25.085,62.92409545]
[1674253032392,29.81,25.168,25.087,128.14644]
[1674253032605,29.81,25.168,25.089,128.14624]
[1674253032917,21.756667,25.169,25.091,128.14604]
[1674253033229,21.756667,25.169,25.093,128.14583]
[1674253033450,21.756667,25.169,25.095,128.14563]
[1674253033641,21.756667,25.169,25.097,2.54543]
[1674253033854,16.756667,25.149,25.098,29.89]
[1674253034055,16.756667,25.149,25.1,2.54512]
[1674253034259,16.756667,25.149,25.101,29.89]
[1674253034489,16.756667,25.149,25.103,2.54482]
[1674253034696,16.756667,25.149,25.104,30.84]
[1674253034913,16.756667,25.149,25.106,2.54451]
[1674253035124,16.756667,25.149,25.107,30.84]
[1674253035436,5.756667,25.149,25.109,2.54421]
[1674253035643,5.756667,25.149,25.11,30.83]
[1674253035853,21.756667,25.169,25.111,145.6]
[1674253036083,21.756667,25.169,25.113,128.1438]
[1674253036282,21.756667,25.169,25.115,128.1436]
[1674253036476,21.756667,25.169,25.117,128.1434]
[1674253036686,21.756667,25.169,25.119,2.5432]
[1674253036902,21.756667,25.169,25.121,125.6]
[1674253037117,21.756667,25.169,25.123,2.54279]
[1674253037327,21.756667,25.169,25.125,125.6]
[1674253037536,21.756667,25.188,25.127,128.14239]
[1674253037752,21.756667,25.188,25.126,67.82]
[1674253037753,21.756667,25.188,25.129,128.14218]
[1674253038069,21.756667,25.188,25.131,128.14198]
[1674253038278,21.756667,25.188,25.133,128.14178]
[1674253038521,21.756667,25.188,25.135,128.14158]
[1674253038694,21.756667,25.188,25.137,128.14138]
[1674253038897,21.756667,25.188,25.139,128.14117]
[1674253039105,21.756667,25.188,25.141,128.14097]
[1674253039334,21.756667,25.188,25.143,128.14077]
[1674253039524,29.74,25.225,25.145,128.14057]
[1674253039854,29.72,25.244,25.196,21.756667]
[1674253040045,29.72,25.244,25.197,20.49532]
[1674253040264,29.72,25.244,25.209,21.756667]
[1674253040478,29.72,25.244,25.21,17.96]
[1674253041098,29.7,25.26,25.211,38.00483594]
[1674253041415,29.7,25.26,25.212,17.96]
[1674253041741,29.72,25.244,25.213,20.0]
[1674253042059,29.7,25.26,25.214,73.46195565]
[1674253042273,29.7,25.26,25.215,20.0]
[1674253042467,29.7,25.26,25.216,17.96]
[1674253043004,29.72,25.244,25.216,17.96]
[1674253043409,29.7,25.26,25.216,17.96]
[1674253043840,29.72,25.244,25.176,66.30096154]
[1674253044056,29.72,25.244,25.217,39.07591065]
[1674253044267,29.72,25.244,25.197,18.00483594]
[1674253044464,29.72,25.244,25.198,2.53522]
[1674253044669,6.48026094,25.275,25.198,2.53522]
[1674253044670,29.7,25.26,25.211,18.00483594]
[1674253044896,29.7,25.26,25.207,58.19728898]
[1674253045107,29.7,25.26,25.207,76.20212492]
[1674253045316,29.72,25.244,25.207,58.19728898]
[1674253045533,29.72,25.244,25.198,2.53522]
[1674253045732,16.756667,25.226,25.191,58.19728898]
[1674253046267,16.756667,25.226,25.194,60.73291898]
[1674253046483,16.756667,25.226,25.195,2.53553]
[1674253046895,16.756667,25.226,25.195,146.47969432]
[1674253047213,16.756667,25.226,25.195,60.73281898]
[1674253047429,16.756667,25.226,25.196,29.77]